[Event "Paul Keres Memorial Festival 2022"]
[Site "Pärnu, Estonia Resort Hotel & Spa"]
[Date "2022.07.20"]
[Round "5.7"]
[White "Rondo, Mikko"]
[Black "Olde, Karl Erik"]
[Result "0-1"]
[TimeControl "60 min for 30 moves + 30 min until game end, from first move every move 30 sec time increment"]
[WhiteFideId "4509633"]
[BlackFideId "4505760"]
[WhiteElo "1579"]
[BlackElo "1842"]

1. g3 {[%clk 01:00:53]} d5 {[%clk 01:00:36]} 2. Bg2 {[%clk 01:01:18]} Nf6
{[%clk 01:00:59]} 3. Nf3 {[%clk 01:01:43]} e6 {[%clk 01:00:50]} 4. O-O {[%clk
01:02:05]} {[%emt 00:00:02]} Be7 {[%clk 01:01:15]} {[%emt 00:00:06]} 5. d3
{[%clk 01:02:29]} {[%emt 00:00:06]} O-O {[%clk 01:00:40]} {[%emt 00:01:05]} 6.
Nbd2 {[%clk 01:02:04]} {[%emt 00:00:54]} c5 {[%clk 00:59:53]} {[%emt 00:01:17]}
7. e4 {[%clk 01:01:53]} {[%emt 00:00:42]} Nc6 {[%clk 00:59:07]} {[%emt
00:01:16]} 8. Re1 {[%clk 01:00:54]} {[%emt 00:01:28]} Qc7 {[%clk 00:56:47]}
{[%emt 00:02:50]} 9. c3 {[%clk 00:59:46]} {[%emt 00:01:39]} dxe4 {[%clk
00:49:03]} {[%emt 00:08:14]} 10. dxe4 {[%clk 00:59:43]} {[%emt 00:00:33]} e5
{[%clk 00:48:07]} {[%emt 00:01:25]} 11. Qc2 {[%clk 01:00:05]} {[%emt 00:00:08]}
h6 {[%clk 00:47:18]} {[%emt 00:01:19]} 12. Nc4 {[%clk 00:59:47]} {[%emt
00:00:48]} Be6 {[%clk 00:46:33]} {[%emt 00:01:15]} 13. Ne3 {[%clk 01:00:09]}
{[%emt 00:00:07]} Rfd8 {[%clk 00:45:51]} {[%emt 00:01:12]} 14. Bf1 {[%clk
00:54:18]} {[%emt 00:06:22]} a6 {[%clk 00:43:02]} {[%emt 00:03:19]} 15. Bc4
{[%clk 00:53:41]} {[%emt 00:01:06]} Bxc4 {[%clk 00:38:26]} {[%emt 00:05:06]} 16.
Nxc4 {[%clk 00:54:09]} {[%emt 00:00:02]} b5 {[%clk 00:38:40]} {[%emt 00:00:16]}
17. Ne3 {[%clk 00:54:34]} {[%emt 00:00:05]} c4 {[%clk 00:37:19]} {[%emt
00:01:52]} 18. a4 {[%clk 00:54:13]} {[%emt 00:00:51]} Na5 {[%clk 00:34:15]}
{[%emt 00:03:34]} 19. axb5 {[%clk 00:54:32]} {[%emt 00:00:11]} axb5 {[%clk
00:34:35]} {[%emt 00:00:09]} 20. Nd5 {[%clk 00:50:13]} {[%emt 00:04:50]} Nxd5
{[%clk 00:29:56]} {[%emt 00:05:09]} 21. exd5 {[%clk 00:50:41]} {[%emt
00:00:02]} Rxd5 {[%clk 00:26:47]} {[%emt 00:03:39]} 22. Qe4 {[%clk 00:50:15]}
{[%emt 00:00:56]} Rad8 {[%clk 00:26:07]} {[%emt 00:01:10]} 23. Nxe5 {[%clk
00:50:38]} {[%emt 00:00:07]} Nb3 {[%clk 00:25:57]} {[%emt 00:00:40]} 24. Bf4
{[%clk 00:42:10]} {[%emt 00:08:57]} Bg5 {[%clk 00:20:37]} {[%emt 00:05:50]} 25.
Ra8 {[%clk 00:35:00]} {[%emt 00:07:41]} Qc5 {[%clk 00:13:02]} {[%emt 00:08:04]}
26. Rxd8+ {[%clk 00:32:00]} {[%emt 00:03:31]} Rxd8 {[%clk 00:13:15]} {[%emt
00:00:17]} 27. Qb7 {[%clk 00:30:50]} {[%emt 00:01:40]} Qd5 {[%clk 00:11:30]}
{[%emt 00:02:14]} 28. Nc6 {[%clk 00:23:38]} {[%emt 00:07:41]} Rd7 {[%clk
00:06:32]} {[%emt 00:05:28]} 29. Qc8+ {[%clk 00:18:52]} {[%emt 00:05:16]} Kh7
{[%clk 00:07:00]} {[%emt 00:00:02]} 30. Nb4 {[%clk 00:42:37]} {[%emt 00:06:45]}
Qf5 {[%clk 00:34:34]} {[%emt 00:02:56]} 31. Bxg5 {[%clk 00:41:19]} {[%emt
00:01:48]} hxg5 {[%clk 00:34:29]} {[%emt 00:00:36]} 32. Nc6 {[%emt 00:01:26]}
g6 {[%clk 00:29:17]} {[%emt 00:05:40]} 33. Nd4 {[%clk 00:21:25]} {[%emt
00:19:30]} Nxd4 {[%clk 00:28:38]} {[%emt 00:01:10]} 34. cxd4 {[%clk 00:21:51]}
{[%emt 00:00:03]} Re7 {[%clk 00:28:27]} {[%emt 00:00:41]} 0-1

[Event "Paul Keres Memorial Festival 2022"]
[Site "Pärnu, Estonia Resort Hotel & Spa"]
[Date "2022.07.20"]
[Round "5.8"]
[White "Agrest, Simon"]
[Black "Valdats, Reinis"]
[Result "1/2-1/2"]
[TimeControl "60 min for 30 moves + 30 min until game end, from first move every move 30 sec time increment"]
[BlackFideId "11617578"]
[WhiteElo "1802"]
[BlackElo "1514"]

1. e4 {[%clk 00:57:18]} {[%emt 00:02:02]} c5 {[%clk 01:00:57]} {[%emt
00:00:12]} 2. Nc3 {[%clk 00:57:27]} {[%emt 00:00:21]} e6 {[%clk 01:01:13]}
{[%emt 00:00:13]} 3. g3 {[%clk 00:56:58]} {[%emt 00:00:59]} Nc6 {[%clk
01:01:25]} {[%emt 00:00:18]} 4. Bg2 {[%clk 00:56:15]} {[%emt 00:01:13]} d6
{[%clk 01:01:22]} {[%emt 00:00:34]} 5. d3 {[%clk 00:56:20]} {[%emt 00:00:25]}
Nf6 {[%clk 01:01:43]} {[%emt 00:00:09]} 6. f4 {[%clk 00:56:15]} {[%emt
00:00:35]} Be7 {[%clk 01:01:40]} {[%emt 00:00:34]} 7. Nf3 {[%clk 00:56:02]}
{[%emt 00:00:43]} a6 {[%clk 01:01:37]} {[%emt 00:00:33]} 8. O-O {[%clk
00:55:25]} {[%emt 00:01:06]} O-O {[%clk 01:01:39]} {[%emt 00:00:27]} 9. h3
{[%clk 00:55:17]} {[%emt 00:00:38]} d5 {[%clk 01:00:16]} {[%emt 00:01:53]} 10.
e5 {[%clk 00:54:28]} {[%emt 00:01:17]} Nd7 {[%clk 01:00:25]} {[%emt 00:00:23]}
11. g4 {[%clk 00:52:53]} {[%emt 00:02:04]} f6 {[%clk 00:59:12]} {[%emt
00:01:43]} 12. exf6 {[%clk 00:45:12]} {[%emt 00:08:11]} Bxf6 {[%clk 00:59:22]}
{[%emt 00:00:20]} 13. g5 {[%clk 00:36:41]} {[%emt 00:09:02]} Bd4+ {[%clk
00:54:49]} {[%emt 00:05:03]} 14. Kh1 {[%clk 00:33:50]} {[%emt 00:03:20]} Bxc3
{[%clk 00:44:31]} {[%emt 00:10:49]} 15. bxc3 {[%clk 00:34:12]} {[%emt
00:00:08]} Ne7 {[%clk 00:40:08]} {[%emt 00:04:53]} 16. Qe2 {[%clk 00:29:35]}
{[%emt 00:05:06]} Nb6 {[%clk 00:37:49]} {[%emt 00:02:49]} 17. Nh4 {[%clk
00:23:49]} {[%emt 00:06:16]} Qc7 {[%clk 00:29:52]} {[%emt 00:08:27]} 18. Bd2
{[%clk 00:16:57]} {[%emt 00:07:22]} Bd7 {[%clk 00:25:45]} {[%emt 00:04:37]} 19.
Rae1 {[%clk 00:14:07]} {[%emt 00:03:21]} Nbc8 {[%clk 00:18:05]} {[%emt
00:08:10]} 20. c4 {[%clk 00:07:45]} {[%emt 00:06:53]} dxc4 {[%clk 00:13:37]}
{[%emt 00:04:58]} 21. dxc4 {[%clk 00:07:54]} {[%emt 00:00:20]} Nd6 {[%clk
00:13:42]} {[%emt 00:00:25]} 22. Qe5 {[%clk 00:06:51]} {[%emt 00:01:34]} Rac8
{[%clk 00:12:35]} {[%emt 00:01:36]} 23. Bc3 {[%clk 00:06:34]} {[%emt 00:00:48]}
Rf7 {[%clk 00:06:02]} {[%emt 00:07:03]} 24. Rb1 {[%clk 00:03:46]} {[%emt
00:03:18]} Nxc4 {[%clk 00:05:20]} {[%emt 00:01:11]} 25. Qxc7 {[%clk 00:03:49]}
{[%emt 00:00:28]} Rxc7 {[%clk 00:05:38]} {[%emt 00:00:12]} 26. Rxb7 {[%clk
00:02:32]} {[%emt 00:01:48]} Rxb7 {[%clk 00:05:51]} {[%emt 00:00:18]} 27. Bxb7
{[%clk 00:02:58]} {[%emt 00:00:03]} Bb5 {[%clk 00:01:49]} {[%emt 00:04:32]} 28.
a4 {[%clk 00:00:37]} {[%emt 00:02:51]} Bxa4 {[%clk 00:02:00]} {[%emt 00:00:19]}
29. Bxa6 {[%clk 00:01:00]} {[%emt 00:00:07]} Ne3 {[%clk 00:02:08]} {[%emt
00:00:22]} 30. Rf2 {[%clk 00:30:34]} {[%emt 00:00:56]} N7d5 {[%clk 00:31:40]}
{[%emt 00:00:58]} 31. Be5 {[%clk 00:29:25]} {[%emt 00:01:37]} Bxc2 {[%clk
00:30:57]} {[%emt 00:01:14]} 32. Bc8 {[%clk 00:26:57]} {[%emt 00:02:57]} Be4+
{[%clk 00:29:37]} {[%emt 00:01:51]} 33. Kh2 {[%clk 00:24:34]} {[%emt 00:02:54]}
Nf5 {[%clk 00:26:54]} {[%emt 00:03:13]} 34. Bxe6 {[%clk 00:14:58]} {[%emt
00:10:06]} Nxh4 {[%clk 00:26:43]} {[%emt 00:00:40]} 35. Ra2 {[%clk 00:11:18]}
{[%emt 00:04:11]} Ne7 {[%clk 00:20:18]} {[%emt 00:06:54]} 36. Rb2 {[%clk
00:06:16]} {[%emt 00:05:33]} Nhg6 {[%clk 00:20:06]} {[%emt 00:00:40]} 37. Rb8+
{[%clk 00:06:14]} {[%emt 00:00:33]} Nf8 {[%clk 00:20:31]} {[%emt 00:00:06]} 38.
Bd6 {[%clk 00:06:04]} {[%emt 00:00:40]} Bd5 {[%clk 00:19:08]} {[%emt 00:01:52]}
39. Bxf7+ {[%clk 00:04:35]} {[%emt 00:01:59]} Kxf7 {[%clk 00:19:23]} {[%emt
00:00:14]} 40. Bxc5 {[%clk 00:04:40]} {[%emt 00:00:26]} Nd7 {[%clk 00:19:20]}
{[%emt 00:00:32]} 41. Rb5 {[%clk 00:04:21]} {[%emt 00:00:50]} Bc6 {[%clk
00:16:08]} {[%emt 00:03:41]} 42. Ra5 {[%clk 00:04:33]} {[%emt 00:00:18]} Nxc5
{[%clk 00:15:44]} {[%emt 00:00:54]} 43. Rxc5 {[%clk 00:04:59]} {[%emt
00:00:04]} Bd7 {[%clk 00:15:13]} {[%emt 00:00:57]} 44. Ra5 {[%clk 00:04:29]}
{[%emt 00:01:05]} Be6 {[%clk 00:15:21]} {[%emt 00:00:20]} 45. Ra7 {[%clk
00:04:30]} {[%emt 00:00:30]} Ke8 {[%clk 00:13:15]} {[%emt 00:02:35]} 1/2-1/2

[Event "Paul Keres Memorial Festival 2022"]
[Site "Pärnu, Estonia Resort Hotel & Spa"]
[Date "2022.07.21"]
[Round "6.1"]
[White "Raag, Ardi"]
[Black "Kantans, Toms"]
[Result "0-1"]
[TimeControl "60 min for 30 moves + 30 min until game end, from first move every move 30 sec time increment"]
[BlackTitle "GM"]
[WhiteFideId "4509269"]
[BlackFideId "11602945"]
[WhiteElo "1971"]
[BlackElo "2486"]

1. e4 {[%clk 01:00:59]} {[%emt 00:00:01]} c5 {[%clk 00:59:36]} {[%emt
00:01:24]} 2. c3 {[%clk 01:01:25]} {[%emt 00:00:03]} Nf6 {[%clk 00:59:54]}
{[%emt 00:00:12]} 3. e5 {[%clk 01:01:51]} {[%emt 00:00:06]} Nd5 {[%clk
01:00:17]} {[%emt 00:00:05]} 4. Nf3 {[%clk 01:02:03]} {[%emt 00:00:19]} Nc6
{[%clk 01:00:20]} {[%emt 00:00:27]} 5. d4 {[%clk 01:02:29]} {[%emt 00:00:05]}
cxd4 {[%clk 01:00:37]} {[%emt 00:00:13]} 6. cxd4 {[%clk 01:02:55]} {[%emt
00:00:05]} d6 {[%clk 01:00:58]} {[%emt 00:00:08]} 7. Bc4 {[%clk 01:03:19]}
{[%emt 00:00:06]} dxe5 {[%clk 01:00:20]} {[%emt 00:01:08]} 8. Nxe5 {[%clk
01:02:06]} {[%emt 00:01:43]} e6 {[%clk 00:59:17]} {[%emt 00:01:33]} 9. O-O
{[%clk 01:01:08]} {[%emt 00:01:28]} Be7 {[%clk 00:59:02]} {[%emt 00:00:45]} 10.
Nf3 {[%clk 01:00:09]} {[%emt 00:01:29]} O-O {[%clk 00:57:22]} {[%emt 00:02:10]}
11. Nc3 {[%clk 00:59:56]} {[%emt 00:00:43]} Nxc3 {[%clk 00:53:07]} {[%emt
00:04:45]} 12. bxc3 {[%clk 01:00:21]} {[%emt 00:00:05]} b6 {[%clk 00:53:33]}
{[%emt 00:00:04]} 13. Bd3 {[%clk 00:52:04]} {[%emt 00:08:47]} Bb7 {[%clk
00:53:11]} {[%emt 00:00:53]} 14. Qe2 {[%clk 00:48:04]} {[%emt 00:04:30]} Rc8
{[%clk 00:51:15]} {[%emt 00:02:26]} 15. Bd2 {[%clk 00:45:20]} {[%emt 00:03:13]}
Bf6 {[%clk 00:49:08]} {[%emt 00:02:37]} 16. Rfd1 {[%clk 00:40:45]} {[%emt
00:05:05]} Qd5 {[%clk 00:44:38]} {[%emt 00:05:00]} 17. c4 {[%clk 00:30:18]}
{[%emt 00:10:58]} Qh5 {[%clk 00:41:25]} {[%emt 00:03:42]} 18. Rac1 {[%clk
00:30:08]} {[%emt 00:00:40]} Rfd8 {[%clk 00:39:28]} {[%emt 00:02:26]} 19. Bc3
{[%clk 00:24:26]} {[%emt 00:06:14]} Ne7 {[%clk 00:37:14]} {[%emt 00:02:44]} 20.
Ne5 {[%clk 00:15:33]} {[%emt 00:09:22]} Qxe2 {[%clk 00:36:40]} {[%emt
00:01:04]} 21. Bxe2 {[%clk 00:16:02]} {[%emt 00:00:02]} Nf5 {[%clk 00:37:02]}
{[%emt 00:00:08]} 22. Bb2 {[%clk 00:12:07]} {[%emt 00:04:25]} Bg5 {[%clk
00:30:26]} {[%emt 00:07:05]} 23. Rc2 {[%clk 00:11:17]} {[%emt 00:01:20]} f6
{[%clk 00:29:38]} {[%emt 00:01:19]} 24. Nf3 {[%clk 00:11:28]} {[%emt 00:00:19]}
Bh6 {[%clk 00:28:39]} {[%emt 00:01:29]} 25. g4 {[%clk 00:07:18]} {[%emt
00:04:39]} Ne7 {[%clk 00:26:49]} {[%emt 00:02:20]} 26. Bc1 {[%clk 00:07:23]}
{[%emt 00:00:26]} Bxc1 {[%clk 00:25:14]} {[%emt 00:02:05]} 27. Rcxc1 {[%clk
00:07:49]} {[%emt 00:00:04]} Ng6 {[%clk 00:25:31]} {[%emt 00:00:12]} 28. Ne1
{[%clk 00:03:15]} {[%emt 00:05:04]} Nf4 {[%clk 00:25:36]} {[%emt 00:00:25]} 29.
Bf1 {[%clk 00:03:41]} {[%emt 00:00:05]} Rc7 {[%clk 00:24:23]} {[%emt 00:01:43]}
30. Rc2 {[%clk 00:30:33]} {[%emt 00:03:38]} Kf8 {[%clk 00:48:22]} {[%emt
00:06:31]} 31. Rcd2 {[%clk 00:21:06]} {[%emt 00:09:57]} Rcd7 {[%clk 00:47:56]}
{[%emt 00:00:56]} 32. h3 {[%clk 00:10:34]} {[%emt 00:11:02]} Bc6 {[%clk
00:46:54]} {[%emt 00:01:32]} 33. Nc2 {[%clk 00:10:53]} {[%emt 00:00:11]} Ba4
{[%clk 00:47:13]} {[%emt 00:00:11]} 34. Kh2 {[%clk 00:10:47]} {[%emt 00:00:36]}
g5 {[%clk 00:37:44]} {[%emt 00:09:59]} 35. Bg2 {[%clk 00:07:13]} {[%emt
00:04:05]} Bxc2 {[%clk 00:36:05]} {[%emt 00:02:09]} 36. Rxc2 {[%clk 00:07:36]}
{[%emt 00:00:07]} Rxd4 {[%clk 00:36:32]} {[%emt 00:00:03]} 37. Rxd4 {[%clk
00:07:52]} {[%emt 00:00:14]} Rxd4 {[%clk 00:37:00]} {[%emt 00:00:01]} 38. c5
{[%clk 00:02:58]} {[%emt 00:05:24]} bxc5 {[%clk 00:37:18]} {[%emt 00:00:12]} 39.
Rxc5 {[%clk 00:03:25]} {[%emt 00:00:03]} Rd2 {[%clk 00:37:29]} {[%emt
00:00:18]} 40. Rc8+ {[%clk 00:03:47]} {[%emt 00:00:09]} Ke7 {[%clk 00:37:54]}
{[%emt 00:00:04]} 41. Kg3 {[%clk 00:03:50]} {[%emt 00:00:27]} h5 {[%clk
00:35:20]} {[%emt 00:03:04]} 42. h4 {[%clk 00:02:06]} {[%emt 00:02:14]} Rxa2
{[%clk 00:32:33]} {[%emt 00:03:17]} 43. hxg5 {[%clk 00:01:23]} {[%emt
00:01:13]} fxg5 {[%clk 00:32:58]} {[%emt 00:00:05]} 44. gxh5 {[%clk 00:01:02]}
{[%emt 00:00:51]} Nxh5+ {[%clk 00:33:23]} {[%emt 00:00:05]} 45. Kf3 {[%clk
00:00:37]} {[%emt 00:00:55]} Nf6 {[%clk 00:29:54]} {[%emt 00:03:59]} 46. Rc7+
{[%clk 00:00:37]} {[%emt 00:00:30]} Kd6 {[%clk 00:30:17]} {[%emt 00:00:08]} 47.
Rg7 {[%clk 00:00:42]} {[%emt 00:00:25]} g4+ {[%clk 00:30:18]} {[%emt 00:00:28]}
48. Ke3 {[%clk 00:01:08]} {[%emt 00:00:04]} Ra3+ {[%clk 00:30:36]} {[%emt
00:00:13]} 49. Ke2 {[%clk 00:01:31]} {[%emt 00:00:07]} Ke5 {[%clk 00:30:36]}
{[%emt 00:00:30]} 50. Rb7 {[%clk 00:01:28]} {[%emt 00:00:33]} a5 {[%clk
00:30:15]} {[%emt 00:00:51]} 51. Rb5+ {[%clk 00:01:34]} {[%emt 00:00:23]} Nd5
{[%clk 00:29:58]} {[%emt 00:00:48]} 52. Bxd5 {[%clk 00:01:43]} {[%emt
00:00:21]} exd5 {[%clk 00:30:26]} {[%emt 00:00:01]} 53. Rb8 {[%clk 00:02:06]}
{[%emt 00:00:07]} Ra2+ {[%clk 00:26:33]} {[%emt 00:04:23]} 54. Ke1 {[%clk
00:01:26]} {[%emt 00:01:11]} Ra4 {[%clk 00:24:37]} {[%emt 00:02:26]} 55. Rg8
{[%clk 00:00:42]} {[%emt 00:01:14]} Rb4 {[%clk 00:24:21]} {[%emt 00:00:46]} 0-1

[Event "Paul Keres Memorial Festival 2022"]
[Site "Pärnu, Estonia Resort Hotel & Spa"]
[Date "2022.07.21"]
[Round "6.2"]
[White "Sulskis, Sarunas"]
[Black "Olde, Margareth"]
[Result "1/2-1/2"]
[TimeControl "60 min for 30 moves + 30 min until game end, from first move every move 30 sec time increment"]
[WhiteTitle "GM"]
[BlackTitle "WIM"]
[WhiteFideId "12800112"]
[BlackFideId "4503082"]
[WhiteElo "2481"]
[BlackElo "2235"]

1. e4 {[%clk 01:00:54]} {[%emt 00:00:04]} e5 {[%clk 01:00:47]} {[%emt
00:00:14]} 2. Nf3 {[%clk 01:00:59]} {[%emt 00:00:25]} Nc6 {[%clk 01:01:11]}
{[%emt 00:00:06]} 3. Bc4 {[%clk 01:00:55]} {[%emt 00:00:34]} Bc5 {[%clk
01:01:26]} {[%emt 00:00:15]} 4. c3 {[%clk 01:01:07]} {[%emt 00:00:17]} Nf6
{[%clk 01:01:46]} {[%emt 00:00:12]} 5. d4 {[%clk 01:01:09]} {[%emt 00:00:27]}
exd4 {[%clk 01:02:10]} {[%emt 00:00:06]} 6. b4 {[%clk 01:01:34]} {[%emt
00:00:05]} Be7 {[%clk 00:56:58]} {[%emt 00:05:42]} 7. e5 {[%clk 00:50:34]}
{[%emt 00:11:30]} Ne4 {[%clk 00:55:12]} {[%emt 00:02:15]} 8. Qb3 {[%clk
00:47:35]} {[%emt 00:03:29]} O-O {[%clk 00:52:46]} {[%emt 00:02:57]} 9. cxd4
{[%clk 00:41:55]} {[%emt 00:06:10]} Bxb4+ {[%clk 00:51:24]} {[%emt 00:01:52]}
10. Kf1 {[%clk 00:41:43]} {[%emt 00:00:41]} d5 {[%clk 00:41:07]} {[%emt
00:10:48]} 11. Bb5 {[%clk 00:26:46]} {[%emt 00:15:27]} Be7 {[%clk 00:39:59]}
{[%emt 00:01:38]} 12. Nc3 {[%clk 00:23:48]} {[%emt 00:03:28]} Nxc3 {[%clk
00:31:16]} {[%emt 00:09:14]} 13. Qxc3 {[%clk 00:19:18]} {[%emt 00:05:00]} Bd7
{[%clk 00:29:51]} {[%emt 00:01:55]} 14. Rb1 {[%clk 00:19:01]} {[%emt 00:00:47]}
a5 {[%clk 00:28:46]} {[%emt 00:01:36]} 15. h4 {[%clk 00:16:03]} {[%emt
00:03:28]} Nb4 {[%clk 00:25:56]} {[%emt 00:03:20]} 16. Bxd7 {[%clk 00:15:16]}
{[%emt 00:01:16]} Qxd7 {[%clk 00:26:16]} {[%emt 00:00:10]} 17. a3 {[%clk
00:13:26]} {[%emt 00:02:20]} Qf5 {[%clk 00:19:52]} {[%emt 00:06:54]} 18. Qb2
{[%clk 00:12:40]} {[%emt 00:01:15]} Na6 {[%clk 00:17:17]} {[%emt 00:03:06]} 19.
Ra1 {[%clk 00:11:48]} {[%emt 00:01:22]} Rab8 {[%clk 00:17:02]} {[%emt
00:00:45]} 20. Bd2 {[%clk 00:11:33]} {[%emt 00:00:44]} c5 {[%clk 00:12:31]}
{[%emt 00:05:02]} 21. Kg1 {[%clk 00:11:31]} {[%emt 00:00:32]} b5 {[%clk
00:10:55]} {[%emt 00:02:07]} 22. Bxa5 {[%clk 00:10:13]} {[%emt 00:01:48]} c4
{[%clk 00:10:01]} {[%emt 00:01:24]} 23. Rh3 {[%clk 00:09:18]} {[%emt 00:01:25]}
b4 {[%clk 00:09:27]} {[%emt 00:01:04]} 24. axb4 {[%clk 00:09:03]} {[%emt
00:00:45]} Nxb4 {[%clk 00:08:50]} {[%emt 00:01:08]} 25. Bxb4 {[%clk 00:06:24]}
{[%emt 00:03:09]} Rxb4 {[%clk 00:09:03]} {[%emt 00:00:17]} 26. Qc1 {[%clk
00:05:59]} {[%emt 00:00:54]} Rfb8 {[%clk 00:06:43]} {[%emt 00:02:50]} 27. Nd2
{[%clk 00:05:18]} {[%emt 00:01:11]} Qf4 {[%clk 00:04:11]} {[%emt 00:03:01]} 28.
Qc3 {[%clk 00:04:49]} {[%emt 00:01:00]} Rb2 {[%clk 00:03:41]} {[%emt 00:00:56]}
29. Re3 {[%clk 00:04:34]} {[%emt 00:00:48]} R8b3 {[%clk 00:03:03]} {[%emt
00:01:08]} 30. Ra8+ {[%clk 00:34:18]} {[%emt 00:00:46]} Bf8 {[%clk 00:33:28]}
{[%emt 00:00:05]} 31. Qa5 {[%clk 00:34:19]} {[%emt 00:00:28]} Rb8 {[%clk
00:27:39]} {[%emt 00:06:19]} 32. Rxb8 {[%clk 00:30:15]} {[%emt 00:04:35]} Rxb8
{[%clk 00:28:04]} {[%emt 00:00:06]} 33. Qa7 {[%clk 00:24:21]} {[%emt 00:06:24]}
c3 {[%clk 00:20:56]} {[%emt 00:07:38]} 34. Rxc3 {[%clk 00:21:21]} {[%emt
00:03:30]} Qxd2 {[%clk 00:20:26]} {[%emt 00:01:01]} 35. Rf3 {[%clk 00:21:37]}
{[%emt 00:00:14]} Qc1+ {[%clk 00:16:36]} {[%emt 00:04:20]} 36. Kh2 {[%clk
00:22:01]} {[%emt 00:00:05]} Qc8 {[%clk 00:17:03]} {[%emt 00:00:03]} 37. Qxf7+
{[%clk 00:20:00]} {[%emt 00:02:31]} Kh8 {[%clk 00:17:30]} {[%emt 00:00:03]} 38.
Qxd5 {[%clk 00:20:09]} {[%emt 00:00:21]} Qg4 {[%clk 00:16:10]} {[%emt
00:01:49]} 39. g3 {[%clk 00:19:44]} {[%emt 00:00:57]} h6 {[%clk 00:13:18]}
{[%emt 00:03:22]} 40. Rf4 {[%clk 00:18:59]} {[%emt 00:01:14]} Qg6 {[%clk
00:12:51]} {[%emt 00:00:57]} 41. Qd7 {[%clk 00:17:07]} {[%emt 00:02:23]} Qe8
{[%clk 00:12:05]} {[%emt 00:01:15]} 42. Qxe8 {[%clk 00:14:20]} {[%emt
00:03:17]} Rxe8 {[%clk 00:12:17]} {[%emt 00:00:18]} 43. d5 {[%clk 00:13:45]}
{[%emt 00:01:04]} Rd8 {[%clk 00:10:54]} {[%emt 00:01:50]} 44. h5 {[%clk
00:11:24]} {[%emt 00:02:55]} Bc5 {[%clk 00:08:43]} {[%emt 00:02:41]} 45. d6
{[%clk 00:11:30]} {[%emt 00:00:23]} Bxd6 {[%clk 00:07:55]} {[%emt 00:01:19]} 46.
exd6 {[%clk 00:11:53]} {[%emt 00:00:07]} Rxd6 {[%clk 00:08:22]} {[%emt
00:00:02]} 47. Rf8+ {[%clk 00:12:07]} {[%emt 00:00:17]} Kh7 {[%clk 00:08:50]}
{[%emt 00:00:03]} 48. Kh3 {[%clk 00:12:06]} {[%emt 00:00:30]} Rd4 {[%clk
00:07:14]} {[%emt 00:02:06]} 49. g4 {[%clk 00:11:59]} {[%emt 00:00:37]} Ra4
{[%clk 00:07:17]} {[%emt 00:00:27]} 50. Kg3 {[%clk 00:12:22]} {[%emt 00:00:07]}
Ra3+ {[%clk 00:06:58]} {[%emt 00:00:49]} 51. f3 {[%clk 00:12:32]} {[%emt
00:00:20]} Rb3 {[%clk 00:06:55]} {[%emt 00:00:33]} 52. Re8 {[%clk 00:12:31]}
{[%emt 00:00:31]} Ra3 {[%clk 00:06:43]} {[%emt 00:00:42]} 53. Kf4 {[%clk
00:10:45]} {[%emt 00:02:16]} Ra5 {[%clk 00:06:38]} {[%emt 00:00:35]} 54. Ke4
{[%clk 00:10:55]} {[%emt 00:00:19]} Ra4+ {[%clk 00:03:19]} {[%emt 00:03:50]} 55.
Kf5 {[%clk 00:10:48]} {[%emt 00:00:37]} Ra5+ {[%clk 00:03:10]} {[%emt
00:00:39]} 56. Re5 {[%clk 00:09:24]} {[%emt 00:01:53]} Ra6 {[%clk 00:03:24]}
{[%emt 00:00:16]} 57. f4 {[%clk 00:09:18]} {[%emt 00:00:37]} Rf6+ {[%clk
00:02:29]} {[%emt 00:01:25]} 58. Ke4 {[%clk 00:09:41]} {[%emt 00:00:07]} Ra6
{[%clk 00:01:29]} {[%emt 00:01:31]} 59. Rd5 {[%clk 00:07:42]} {[%emt 00:02:28]}
Rb6 {[%clk 00:00:52]} {[%emt 00:01:08]} 60. Ke5 {[%clk 00:07:55]} {[%emt
00:00:16]} Ra6 {[%clk 00:01:04]} {[%emt 00:00:19]} 61. f5 {[%clk 00:04:19]}
{[%emt 00:04:05]} Ra4 {[%clk 00:01:12]} {[%emt 00:00:22]} 62. Rd4 {[%clk
00:04:43]} {[%emt 00:00:06]} Ra6 {[%clk 00:01:11]} {[%emt 00:00:28]} 63. Rd6
{[%clk 00:04:01]} {[%emt 00:01:15]} Ra5+ {[%clk 00:01:04]} {[%emt 00:00:33]} 64.
Ke6 {[%clk 00:03:15]} {[%emt 00:01:19]} Ra4 {[%clk 00:01:02]} {[%emt 00:00:33]}
65. f6 {[%clk 00:02:36]} {[%emt 00:01:08]} gxf6 {[%clk 00:01:08]} {[%emt
00:00:25]} 66. Kf5 {[%clk 00:02:13]} {[%emt 00:00:53]} Kg7 {[%clk 00:00:46]}
{[%emt 00:00:53]} 67. Rd7+ {[%clk 00:02:29]} {[%emt 00:00:13]} Kg8 {[%clk
00:01:09]} {[%emt 00:00:06]} 68. Re7 {[%clk 00:02:36]} {[%emt 00:00:24]} Ra5+
{[%clk 00:00:34]} {[%emt 00:01:05]} 69. Kxf6 {[%clk 00:02:34]} {[%emt
00:00:32]} Rg5 {[%clk 00:00:57]} {[%emt 00:00:07]} 70. Re4 {[%clk 00:02:05]}
{[%emt 00:00:59]} Kh7 {[%clk 00:01:14]} {[%emt 00:00:13]} 71. Rf4 {[%clk
00:01:41]} {[%emt 00:00:53]} Kg8 {[%clk 00:01:03]} {[%emt 00:00:40]} 72. Ke7
{[%clk 00:01:57]} {[%emt 00:00:16]} Re5+ {[%clk 00:01:09]} {[%emt 00:00:22]} 73.
Kd6 {[%clk 00:02:20]} {[%emt 00:00:08]} Rg5 {[%clk 00:01:34]} {[%emt 00:00:05]}
74. Ke6 {[%clk 00:02:47]} {[%emt 00:00:03]} Kg7 {[%clk 00:01:49]} {[%emt
00:00:13]} 75. Ra4 {[%clk 00:02:24]} {[%emt 00:00:54]} Kg8 {[%clk 00:01:35]}
{[%emt 00:00:42]} 76. Kf6 {[%clk 00:02:04]} {[%emt 00:00:52]} Kh7 {[%clk
00:01:57]} {[%emt 00:00:08]} 77. Kf7 {[%clk 00:01:15]} {[%emt 00:01:19]} Rg7+
{[%clk 00:02:17]} {[%emt 00:00:10]} 78. Ke6 {[%clk 00:01:38]} {[%emt 00:00:07]}
Rg5 {[%clk 00:02:43]} {[%emt 00:00:04]} 79. Kf6 {[%clk 00:02:02]} {[%emt
00:00:05]} Kg8 {[%clk 00:02:27]} {[%emt 00:00:43]} 1/2-1/2